bitfinex-derivatives/quotes_BTCF0:USTF0_20250809
["timestamp","ask_amount","ask_price","bid_price","bid_amount"]
[1754757201289,1.5736446,116760.0,116750.0,0.28324738]
[1754757201481,1.5736446,116760.0,116750.0,0.12998002]
[1754757201985,0.9084292,116760.0,116750.0,0.23767415]
[1754757202187,0.9084292,116760.0,116750.0,0.59847415]
[1754757202388,0.9084292,116760.0,116750.0,0.5984619]
[1754757202989,1.5736446,116760.0,116750.0,0.5984619]
[1754757203487,1.5736446,116760.0,116750.0,0.12998002]
[1754757203681,1.5736446,116760.0,116750.0,0.49078002]
[1754757203888,1.5736446,116760.0,116750.0,0.23765745]
[1754757204082,1.5736446,116760.0,116750.0,0.19007745]
[1754757204287,1.9062523,116760.0,116750.0,0.22909743]
[1754757204482,0.9084292,116760.0,116750.0,0.17219743]
[1754757204687,0.9084292,116760.0,116750.0,0.21435396]
[1754757204887,1.5736446,116760.0,116750.0,0.21435396]
[1754757205390,1.5736446,116760.0,116750.0,0.23758396]
[1754757205687,1.5736446,116760.0,116750.0,0.22909743]
[1754757206083,1.5831246,116760.0,116750.0,0.58989743]
[1754757206390,0.9179092,116760.0,116750.0,0.22909743]
[1754757206586,1.2507169,116760.0,116750.0,1.00814043]
[1754757206889,1.2507169,116760.0,116750.0,0.58989743]
[1754757206890,0.9181092,116760.0,116750.0,0.58989743]
[1754757207088,0.9181092,116760.0,116750.0,0.22909743]
[1754757207289,1.5833246,116760.0,116750.0,0.22909743]
[1754757207787,0.9181092,116760.0,116750.0,0.22909743]
[1754757208190,1.5833246,116760.0,116750.0,0.22909743]
[1754757208385,1.2507169,116760.0,116750.0,0.22909743]
[1754757208589,0.9181092,116760.0,116750.0,0.58989743]
[1754757208791,1.5833246,116760.0,116750.0,0.58989743]
[1754757209193,0.9181092,116760.0,116750.0,0.58989743]
[1754757209390,1.5833246,116760.0,116750.0,0.58989743]
[1754757209987,0.9181092,116760.0,116750.0,0.58989743]
[1754757210288,1.5833246,116760.0,116750.0,0.58989743]
[1754757210794,0.9181092,116760.0,116750.0,0.48222]
[1754757211395,1.5833246,116760.0,116750.0,0.55912614]
[1754757211891,1.5833246,116760.0,116750.0,0.48222]
[1754757212899,0.9181092,116760.0,116750.0,0.48222]
[1754757213105,1.5833246,116760.0,116750.0,0.48222]
[1754757213498,1.65253301,116760.0,116750.0,0.48222]
[1754757215902,0.98731761,116760.0,116750.0,0.48222]
[1754757216198,1.65253301,116760.0,116750.0,0.48222]
[1754757216799,0.98731761,116760.0,116750.0,0.3949]
[1754757217102,1.65253301,116760.0,116750.0,0.3949]
[1754757217292,1.65253301,116760.0,116750.0,0.47837]
[1754757218896,1.65253301,116760.0,116750.0,0.43189]
[1754757218897,0.98731761,116760.0,116750.0,0.43189]
[1754757219096,1.65253301,116760.0,116750.0,0.41115]
[1754757219298,0.98731761,116760.0,116750.0,0.45763]
[1754757219702,1.65253301,116760.0,116750.0,0.45763]
[1754757220208,1.65253301,116760.0,116750.0,0.02526]
[1754757220702,1.98514071,116760.0,116750.0,0.001]
[1754757220906,2.34594071,116760.0,116750.0,0.001]
[1754757221704,2.34594071,116760.0,116750.0,0.02526]
[1754757221895,2.34594071,116760.0,116750.0,0.10874965]
[1754757224296,2.43159014,116760.0,116750.0,0.001]
[1754757226808,1.43376704,116760.0,116750.0,0.001]
[1754757226997,1.43376704,116760.0,116750.0,0.02526]
[1754757227197,2.43159014,116760.0,116750.0,0.02526]
[1754757227402,2.03469301,116760.0,116750.0,0.02526]
[1754757227603,2.03469301,116760.0,116750.0,0.10336]
[1754757227805,0.15983761,116760.0,116750.0,0.11791]
[1754757228006,1.00779761,116760.0,116750.0,0.11791]
[1754757228203,2.36642071,116760.0,116750.0,0.07143]
[1754757228411,2.36642071,116760.0,116750.0,0.05035]
[1754757228705,2.25681647,116760.0,116750.0,0.03444]
[1754757228901,1.36859761,116760.0,116750.0,0.03444]
[1754757229110,1.81230704,116760.0,116750.0,0.07143]
[1754757229402,1.81230704,116760.0,116750.0,0.11791]
[1754757229595,1.36819761,116760.0,116750.0,0.11791]
[1754757229799,1.45150704,116760.0,116750.0,0.11791]
[1754757230003,0.60394704,116760.0,116750.0,0.11791]
[1754757230203,1.00723761,116760.0,116750.0,0.11791]
[1754757230399,1.45134704,116760.0,116750.0,0.11791]
[1754757231601,1.45134704,116760.0,116750.0,0.22565965]
[1754757231797,0.60394704,116760.0,116750.0,0.22565965]
[1754757232004,1.45058704,116760.0,116750.0,0.47871]
[1754757232904,0.60394704,116760.0,116750.0,0.47871]
[1754757233205,1.00611761,116760.0,116750.0,0.5643452]
[1754757233611,1.00595761,116760.0,116750.0,0.5643452]
[1754757234006,0.15983761,116760.0,116750.0,0.5643452]
[1754757234206,0.9364292,116760.0,116750.0,1.00845463]
[1754757235108,0.9364292,116760.0,116750.0,1.16172199]
[1754757235308,0.9360692,116760.0,116750.0,1.33301799]
[1754757236011,0.9360692,116760.0,116750.0,1.17975063]
[1754757236306,0.9360692,116760.0,116750.0,0.7356412]
[1754757236498,0.9360692,116760.0,116750.0,1.17975063]
[1754757237314,0.9321492,116760.0,116750.0,1.17975063]
[1754757237512,0.9341492,116760.0,116750.0,1.17975063]
[1754757237716,0.9329892,116760.0,116750.0,1.17875063]
[1754757238414,0.9319892,116760.0,116750.0,1.17875063]
[1754757238613,0.9329892,116760.0,116750.0,1.17875063]
[1754757240013,0.9329892,116760.0,116750.0,1.33201799]
[1754757240208,0.0886292,116760.0,116750.0,1.33201799]
[1754757240409,0.9315892,116760.0,116750.0,1.33201799]
[1754757240811,0.9315892,116760.0,116750.0,1.17875063]
[1754757241614,0.9305892,116760.0,116750.0,1.17875063]
[1754757241816,0.9305892,116760.0,116750.0,1.17975063]
[1754757242016,0.9295892,116760.0,116750.0,1.17975063]
[1754757242417,0.0866292,116760.0,116750.0,1.17975063]
[1754757242618,0.84352,116760.0,116750.0,0.7356412]
[1754757242818,0.9291492,116760.0,116750.0,1.17975063]
[1754757243612,0.9291492,116760.0,116750.0,0.7356412]
[1754757243814,0.84352,116760.0,116750.0,1.17975063]
[1754757244218,0.84352,116760.0,116750.0,0.7356412]
[1754757244519,0.84352,116760.0,116750.0,1.17975063]
[1754757244722,0.001,116760.0,116750.0,1.17975063]
[1754757244918,0.25685,116780.0,116770.0,0.2025305]
[1754757245108,1.09853,116780.0,116770.0,0.5633305]
[1754757245313,1.09853,116780.0,116770.0,0.67094264]
[1754757245518,1.54263943,116780.0,116770.0,0.67094264]
[1754757245719,1.50903124,116790.0,116780.0,0.02322]
[1754757245917,2.35059124,116790.0,116780.0,1.00875263]
[1754757246114,2.35059124,116790.0,116780.0,0.5646432]
[1754757246324,2.79470067,116790.0,116780.0,0.67222026]
[1754757246716,2.79470067,116790.0,116780.0,0.5646432]
[1754757247119,2.35059124,116790.0,116780.0,0.6414648]
[1754757247319,2.79470067,116790.0,116780.0,0.6414648]
[1754757248326,1.18836,116790.0,116780.0,0.6414648]
[1754757248526,1.18836,116790.0,116780.0,1.18000863]
[1754757248723,1.19036,116790.0,116780.0,1.18100863]
[1754757248932,2.02824,116790.0,116780.0,1.18100863]
[1754757249219,2.03024,116790.0,116780.0,1.18100863]
[1754757249417,2.02988,116790.0,116780.0,1.18100863]
[1754757250128,2.02988,116790.0,116780.0,0.7368992]
[1754757250318,2.02988,116790.0,116780.0,1.18100863]
[1754757250623,2.1114859,116790.0,116780.0,0.7368992]
[1754757250818,2.1114859,116790.0,116780.0,1.18100863]
[1754757251124,2.1114859,116790.0,116780.0,1.28840667]
[1754757251324,2.1114859,116790.0,116780.0,0.84429724]
[1754757251521,2.1114859,116790.0,116780.0,1.18100863]
[1754757251721,2.1114859,116790.0,116780.0,1.00975263]
[1754757252325,1.2699659,116790.0,116780.0,1.00975263]
[1754757252523,2.02488,116790.0,116780.0,1.00975263]
[1754757252924,0.2568071,116800.0,116790.0,0.2038359]
[1754757253124,1.0972871,116800.0,116790.0,1.08542906]
[1754757253423,1.0972871,116800.0,116790.0,0.5646359]
[1754757253624,1.54139653,116800.0,116790.0,0.5646359]
[1754757254028,1.54239653,116800.0,116790.0,0.5646359]
[1754757254227,1.0992871,116800.0,116790.0,0.5646359]
[1754757255030,1.54339653,116800.0,116790.0,0.5646359]
[1754757255425,1.0992871,116800.0,116790.0,0.5646359]
[1754757257429,0.2588071,116800.0,116790.0,0.5646359]
[1754757257627,0.002,116800.0,116790.0,1.17998533]
[1754757257826,0.84188,116800.0,116790.0,1.25666906]
[1754757258031,0.84188,116800.0,116790.0,0.7358759]
[1754757258231,0.002,116800.0,116790.0,1.17998533]
[1754757258424,0.84188,116800.0,116790.0,0.84327394]
[1754757258629,0.84188,116800.0,116790.0,1.29617807]
[1754757258829,0.002,116800.0,116790.0,1.18878003]
[1754757259030,0.84212,116800.0,116790.0,1.18878003]
[1754757259635,0.84112,116800.0,116790.0,1.18978003]
[1754757260127,0.001,116800.0,116790.0,1.18978003]
[1754757260324,0.841,116800.0,116790.0,1.18978003]
[1754757260526,0.841,116800.0,116790.0,1.29717807]
[1754757260721,0.84,116800.0,116790.0,1.29617807]
[1754757260931,0.84,116800.0,116790.0,1.29717807]
[1754757261330,0.3423577,116820.0,116800.0,0.0855926]
[1754757261530,0.3423577,116820.0,116810.0,0.91654499]
[1754757261729,1.1819577,116820.0,116810.0,1.00213639]
[1754757263338,1.62606713,116820.0,116810.0,1.00213639]
[1754757263534,1.62906713,116820.0,116810.0,1.00213639]
[1754757263734,1.1849577,116820.0,116810.0,1.00213639]
[1754757264136,1.0137749,116820.0,116810.0,1.44624582]
[1754757264337,0.8426,116820.0,116810.0,1.44624582]
[1754757264841,0.8426,116820.0,116810.0,1.36953083]
[1754757265638,0.9281841,116820.0,116810.0,0.9254214]
[1754757266344,0.9281841,116820.0,116810.0,1.36953083]
[1754757267143,0.9281841,116820.0,116810.0,0.9254214]
[1754757267344,0.9281841,116820.0,116810.0,1.37053083]
[1754757267645,0.9251841,116820.0,116810.0,1.37053083]
[1754757268642,1.36929353,116820.0,116810.0,0.9264214]
[1754757268938,1.36929353,116820.0,116810.0,0.95684933]
[1754757268939,0.9251841,116820.0,116810.0,0.95684933]
[1754757269147,0.9251841,116820.0,116810.0,1.00311933]
[1754757269842,0.9251841,116820.0,116810.0,1.44722876]
[1754757270347,0.9271841,116820.0,116810.0,1.00311933]
[1754757270543,0.9301841,116820.0,116810.0,1.00311933]
[1754757270940,0.9271841,116820.0,116810.0,1.00311933]
[1754757271245,0.9301841,116820.0,116810.0,1.00311933]
[1754757273845,0.9301841,116820.0,116810.0,1.44722876]
[1754757274043,0.9281841,116820.0,116810.0,1.44622876]
[1754757274348,0.9301841,116820.0,116810.0,1.44722876]
[1754757274541,0.9301841,116820.0,116810.0,1.37053083]
[1754757274946,0.9291841,116820.0,116810.0,1.36953083]
[1754757275245,0.9271841,116820.0,116810.0,1.36953083]
[1754757275545,0.9271841,116820.0,116810.0,1.47693182]
[1754757277049,0.9261841,116820.0,116810.0,1.47693182]
[1754757278750,0.9251841,116820.0,116810.0,1.47693182]
[1754757278952,0.9251841,116820.0,116810.0,1.47793182]
[1754757279544,0.9251841,116820.0,116810.0,1.37053083]
[1754757280041,0.9251841,116820.0,116810.0,0.9264214]
[1754757280241,0.9251841,116820.0,116810.0,1.37053083]
[1754757280745,0.9251841,116820.0,116810.0,1.47793182]
[1754757283251,0.9251841,116820.0,116810.0,1.03382239]
[1754757283453,0.9251841,116820.0,116810.0,0.98755239]
[1754757283752,1.36929353,116820.0,116810.0,1.03526239]
[1754757284056,0.9251841,116820.0,116810.0,1.03526239]
[1754757284847,0.9271841,116820.0,116810.0,1.03526239]
[1754757285047,0.9271841,116820.0,116810.0,1.47937182]
[1754757286351,0.9261841,116820.0,116810.0,1.47837182]
[1754757286850,0.9261841,116820.0,116810.0,1.03426239]
[1754757287048,0.9261841,116820.0,116810.0,1.47837182]
[1754757287448,0.9271841,116820.0,116810.0,1.47837182]
[1754757287649,0.9271841,116820.0,116810.0,1.03426239]
[1754757287952,0.9271841,116820.0,116810.0,1.47837182]
[1754757290350,0.9271841,116820.0,116810.0,1.03426239]
[1754757290856,0.9271841,116820.0,116810.0,0.9268614]
[1754757291656,0.9271841,116820.0,116810.0,1.03426239]
[1754757295956,0.9271841,116820.0,116810.0,1.47837182]
[1754757297761,0.9271841,116820.0,116810.0,1.37097083]
[1754757298458,0.9261841,116820.0,116810.0,1.37097083]
[1754757298663,0.9271841,116820.0,116810.0,1.37097083]
[1754757299262,0.8416,116820.0,116810.0,1.37097083]
[1754757300260,0.8416,116820.0,116810.0,1.47884561]
[1754757300459,1.3551303,116850.0,116840.0,0.0855695]
[1754757300758,2.2153403,116850.0,116840.0,1.11835371]
[1754757300960,2.04421,116850.0,116840.0,1.11835371]
[1754757301267,2.01108,116850.0,116840.0,1.11833254]
[1754757301654,0.2898062,116860.0,116840.0,1.18161323]
[1754757301860,0.2898062,116860.0,116850.0,1.01047163]
[1754757301861,0.1711146,116860.0,116850.0,1.01047163]
[1754757302058,0.9979546,116860.0,116850.0,1.01047163]
[1754757302257,0.9123953,116860.0,116850.0,1.01047163]
[1754757302758,0.9123953,116860.0,116850.0,1.08738643]
[1754757303059,0.9123953,116860.0,116850.0,0.643277]
[1754757303060,0.9465253,116860.0,116850.0,0.643277]
[1754757303365,1.45119473,116860.0,116850.0,0.5663622]
[1754757303560,1.45119473,116860.0,116850.0,0.00974]
[1754757303768,0.1802522,116850.0,116840.0,0.8144186]
[1754757304065,0.62436163,116850.0,116840.0,0.7288491]
[1754757304459,0.62336163,116850.0,116840.0,0.7288491]
[1754757304660,0.1792522,116850.0,116840.0,0.7288491]
[1754757304854,0.62336163,116850.0,116840.0,0.6811391]
[1754757305062,0.1792522,116850.0,116840.0,0.6567491]
[1754757305262,0.1792522,116850.0,116840.0,0.7272491]
[1754757305564,0.1561222,116850.0,116840.0,0.7272491]
[1754757305757,0.1561222,116850.0,116840.0,1.17135853]
[1754757306264,0.1561222,116850.0,116840.0,0.7272491]
[1754757306558,0.1561222,116850.0,116840.0,1.17135853]
[1754757306764,0.0855622,116850.0,116840.0,1.17135853]
[1754757306952,0.0855622,116850.0,116840.0,1.17235853]
[1754757307265,0.9135622,116850.0,116840.0,1.28021214]
[1754757307456,0.9135622,116850.0,116840.0,1.20329734]
[1754757307652,0.9135622,116850.0,116840.0,0.75918791]
[1754757307856,0.9135622,116850.0,116840.0,1.20329734]
[1754757308363,1.0095322,116850.0,116840.0,0.75918791]
[1754757311360,1.0095322,116850.0,116840.0,1.09544373]
[1754757313865,1.0095322,116850.0,116840.0,0.6513343]
[1754757314067,1.0095322,116850.0,116840.0,1.09544373]
[1754757314367,1.0095322,116850.0,116840.0,1.20293824]
[1754757314767,1.0095322,116850.0,116840.0,0.6513343]
[1754757314965,1.0095322,116850.0,116840.0,1.09544373]
[1754757317573,0.9864322,116850.0,116840.0,1.09544373]
[1754757318272,0.9864322,116850.0,116840.0,0.6513343]
[1754757318468,1.0095322,116850.0,116840.0,0.7588413]
[1754757318673,1.0095322,116850.0,116840.0,1.20295073]
[1754757318972,1.0095322,116850.0,116840.0,1.20295197]
[1754757319172,1.0095322,116850.0,116840.0,0.75884254]
[1754757319473,1.0095322,116850.0,116840.0,1.20296053]
[1754757319972,1.0095322,116850.0,116840.0,1.20296028]
[1754757320769,1.0095322,116850.0,116840.0,1.09544373]
[1754757321576,1.0095322,116850.0,116840.0,0.6513343]
[1754757323485,1.0095322,116850.0,116840.0,1.09544373]
[1754757325788,1.0095322,116850.0,116840.0,0.75896219]
[1754757325986,1.0095322,116850.0,116840.0,1.20307162]
[1754757327481,1.0095322,116850.0,116840.0,1.09544373]
[1754757327687,0.9864322,116850.0,116840.0,1.09544373]
[1754757328085,0.9712522,116850.0,116840.0,1.09544373]
[1754757328388,0.9135622,116850.0,116840.0,1.09544373]
[1754757330390,0.9479322,116850.0,116840.0,1.09544373]
[1754757330593,0.9135622,116850.0,116840.0,1.09544373]
[1754757331086,0.828,116850.0,116840.0,1.09544373]
[1754757331292,0.256678,116860.0,116850.0,0.2035524]
[1754757331488,0.9104353,116860.0,116850.0,1.00846183]
[1754757332387,0.82488,116860.0,116850.0,1.00846183]
[1754757332695,0.82588,116860.0,116850.0,1.00846183]
[1754757332991,0.9124351,116860.0,116850.0,1.00846183]
[1754757333194,0.75059873,116860.0,116850.0,1.00846183]
[1754757333986,0.78396873,116860.0,116850.0,1.00846183]
[1754757334196,0.78396873,116860.0,116850.0,1.00946183]
[1754757334393,0.78396873,116860.0,116850.0,0.5653524]
[1754757334586,1.26657816,116860.0,116850.0,0.5653524]
[1754757334898,1.28967816,116860.0,116850.0,0.71934657]
[1754757335195,1.28967816,116860.0,116850.0,0.61068657]
[1754757335486,1.28967816,116860.0,116850.0,0.68559657]
[1754757335693,1.29067816,116860.0,116850.0,0.5626624]
[1754757336494,0.84656873,116860.0,116850.0,0.5626624]
[1754757339293,1.29067816,116860.0,116850.0,0.57110883]
[1754757340895,0.84656873,116860.0,116850.0,0.57110883]
[1754757341195,0.84656873,116860.0,116850.0,0.64808586]
[1754757341392,0.84656873,116860.0,116850.0,0.57110883]
[1754757342492,0.84656873,116860.0,116850.0,0.64808586]
[1754757342689,0.84656873,116860.0,116850.0,0.57110883]
[1754757342995,0.84656873,116860.0,116850.0,0.64808586]
[1754757343191,1.0106051,116860.0,116850.0,0.57110883]
[1754757343398,0.1835251,116860.0,116850.0,0.57110883]
[1754757343598,1.45451453,116860.0,116850.0,0.57110883]
[1754757347499,1.45451453,116860.0,116850.0,0.64808199]
[1754757348199,1.45451453,116860.0,116850.0,0.08541959]
[1754757348600,1.45451453,116860.0,116840.0,0.3608]
[1754757348601,0.1786524,116850.0,116840.0,0.07697316]
[1754757348795,0.62276183,116850.0,116840.0,0.07697316]
[1754757349604,0.62276183,116850.0,116840.0,0.17126104]
[1754757349902,0.62276183,116850.0,116840.0,0.28850104]
[1754757351299,0.62276183,116850.0,116840.0,0.21152788]
[1754757352207,0.62276183,116850.0,116840.0,0.57232788]
[1754757352504,0.62276183,116850.0,116840.0,0.21152788]
[1754757352706,0.62276183,116850.0,116840.0,0.57232788]
[1754757353301,1.0047324,116850.0,116840.0,0.57232788]
[1754757353804,1.44884183,116850.0,116840.0,0.51844788]
[1754757354196,1.44884183,116850.0,116840.0,0.55050788]
[1754757354399,1.44884183,116850.0,116840.0,0.45608788]
[1754757354701,1.44884183,116850.0,116840.0,0.47900788]
[1754757357005,1.0047324,116850.0,116840.0,0.47900788]
[1754757357203,1.44884183,116850.0,116840.0,0.50217788]
[1754757357505,1.0047324,116850.0,116840.0,0.50217788]
[1754757357696,1.44884183,116850.0,116840.0,0.50217788]
[1754757359200,1.44884183,116850.0,116840.0,0.53423788]
[1754757360311,1.44884183,116850.0,116840.0,0.11736744]
[1754757360312,1.80964183,116850.0,116840.0,0.11736744]
[1754757360608,1.80964183,116850.0,116840.0,0.10864936]
[1754757361507,1.80964183,116850.0,116840.0,0.0863322]
[1754757361804,1.80964183,116850.0,116840.0,0.07788243]
[1754757363701,1.80964183,116850.0,116840.0,0.08666788]
[1754757367604,1.80964183,116850.0,116840.0,0.07788243]
[1754757368313,1.80964183,116850.0,116840.0,0.08648317]
[1754757368912,1.80964183,116850.0,116840.0,0.07788243]
[1754757369107,1.80964183,116850.0,116840.0,0.001]
[1754757369303,1.80964183,116850.0,116840.0,0.07788243]
[1754757371311,1.80964183,116850.0,116840.0,0.10209243]
[1754757371916,1.3655324,116850.0,116840.0,0.10209243]
[1754757372216,1.80964183,116850.0,116840.0,0.10209243]
[1754757372513,1.80964183,116850.0,116840.0,0.11081146]
[1754757372899,1.3655324,116850.0,116840.0,0.11081146]
[1754757373107,1.80964183,116850.0,116840.0,0.11081146]
[1754757373411,1.44884183,116850.0,116840.0,0.11081146]
[1754757374112,1.80964183,116850.0,116840.0,0.11081146]
[1754757376309,1.80964183,116850.0,116840.0,0.00971903]
[1754757376509,1.80964183,116850.0,116840.0,0.12918903]
[1754757376713,1.3655324,116850.0,116840.0,0.12918903]
[1754757377010,1.80964183,116850.0,116840.0,0.12918903]
[1754757377213,1.3655324,116850.0,116840.0,0.12918903]
[1754757377410,1.80964183,116850.0,116840.0,0.23683839]
[1754757378215,1.44884183,116850.0,116840.0,0.23683839]
[1754757380213,1.80964183,116850.0,116840.0,0.23683839]
[1754757380410,1.80964183,116850.0,116840.0,0.20346839]
[1754757382414,1.80964183,116850.0,116840.0,0.18909839]
[1754757383318,1.80964183,116850.0,116840.0,0.16701839]
[1754757384307,1.80964183,116850.0,116840.0,0.18138839]
[1754757385318,1.80964183,116850.0,116840.0,0.21475839]
[1754757385621,1.80964183,116850.0,116840.0,0.23683839]
[1754757387228,1.44884183,116850.0,116840.0,0.23683839]
[1754757389824,1.44884183,116850.0,116840.0,0.12918903]
[1754757391219,1.44884183,116850.0,116840.0,0.31408853]
[1754757391418,0.62276183,116850.0,116840.0,0.31408853]
[1754757391619,1.44976183,116850.0,116840.0,0.48998903]
[1754757392824,1.44976183,116850.0,116840.0,0.12918903]
[1754757394227,1.44976183,116850.0,116840.0,0.21475883]
[1754757394429,1.44976183,116850.0,116840.0,0.12918903]
[1754757394924,1.44976183,116850.0,116840.0,0.48998903]
[1754757395231,0.1792924,116850.0,116840.0,0.57555873]
[1754757395422,1.44996183,116850.0,116840.0,0.57555873]
[1754757395624,1.0058524,116850.0,116840.0,0.68341685]
[1754757395823,1.44996183,116850.0,116840.0,0.68341685]
[1754757397124,1.44996183,116850.0,116840.0,0.48998903]
[1754757397324,1.44996183,116850.0,116840.0,0.12918903]
[1754757397831,1.0058524,116850.0,116840.0,0.12918903]
[1754757398032,1.44996183,116850.0,116840.0,0.12918903]
[1754757398332,1.44996183,116850.0,116840.0,0.57555883]
[1754757398833,1.0058524,116850.0,116840.0,0.57555883]
[1754757399132,1.44996183,116850.0,116840.0,0.48998903]
[1754757399428,1.44996183,116850.0,116840.0,0.12918903]
[1754757399638,1.44996183,116850.0,116840.0,0.48998903]
[1754757399827,1.0058524,116850.0,116840.0,0.48998903]
[1754757400031,1.44996183,116850.0,116840.0,0.48998903]
[1754757400532,1.44996183,116850.0,116840.0,0.59784715]
[1754757401232,1.44996183,116850.0,116840.0,0.48998903]
[1754757403434,1.0058524,116850.0,116840.0,0.48998903]
[1754757403629,1.44996183,116850.0,116840.0,0.48998903]
[1754757406536,1.44996183,116850.0,116840.0,0.59786725]
[1754757406744,1.44996183,116850.0,116840.0,0.48776725]
[1754757407036,1.44996183,116850.0,116840.0,0.57364725]
[1754757408137,0.62340183,116850.0,116840.0,0.57364725]
[1754757408325,1.44864183,116850.0,116840.0,0.59621725]
[1754757408525,1.44864183,116850.0,116840.0,0.68178705]
[1754757410242,1.44864183,116850.0,116840.0,0.54190725]
[1754757410544,1.44864183,116850.0,116840.0,0.51251725]
[1754757410736,1.44864183,116850.0,116840.0,0.16598725]
[1754757410932,1.78674183,116850.0,116840.0,0.19772725]
[1754757411530,1.78674183,116850.0,116840.0,0.23541725]
[1754757411732,1.42594183,116850.0,116840.0,0.23541725]
[1754757412142,0.9818324,116850.0,116840.0,0.23541725]
[1754757412344,1.42594183,116850.0,116840.0,0.32098705]
[1754757413145,0.60070183,116850.0,116840.0,0.32098705]
[1754757413335,1.42546183,116850.0,116840.0,0.23541725]
[1754757413541,1.36916183,116850.0,116840.0,0.32098705]
[1754757413840,1.42581183,116850.0,116840.0,0.68178705]
[1754757416045,0.9817024,116850.0,116840.0,0.68178705]
[1754757416236,1.42581183,116850.0,116840.0,0.68178705]
[1754757416432,1.42581183,116850.0,116840.0,0.32098705]
[1754757416944,1.42581183,116850.0,116840.0,0.23541725]
[1754757419941,1.42581183,116850.0,116840.0,0.20367725]
[1754757420140,1.42581183,116850.0,116840.0,0.15171725]
[1754757420342,1.42581183,116850.0,116840.0,0.11759725]
[1754757420541,1.78661183,116850.0,116840.0,0.10887822]
[1754757420741,2.00777962,116850.0,116840.0,0.10887822]
[1754757421944,2.00777962,116850.0,116840.0,0.11731117]
[1754757422444,2.00777962,116850.0,116840.0,0.00943295]
[1754757422644,1.78595177,116850.0,116840.0,0.00943295]
[1754757422845,2.22940114,116850.0,116840.0,0.07805532]
[1754757423047,1.78595177,116850.0,116840.0,0.07805532]
[1754757426047,1.78595177,116850.0,116840.0,0.001]
[1754757426246,1.78595177,116850.0,116840.0,0.10887822]
[1754757427850,1.78595177,116850.0,116840.0,0.001]
[1754757428146,1.78595177,116850.0,116840.0,0.07802239]
[1754757428348,0.0855698,116840.0,116830.0,0.10787822]
[1754757428553,0.0855771,116830.0,116820.0,0.13262822]
[1754757428852,1.71390647,116830.0,116820.0,0.13262822]
[1754757429049,1.71390647,116830.0,116820.0,0.02475]
[1754757430352,1.71390647,116830.0,116820.0,0.14112511]
[1754757430654,1.71490647,116830.0,116820.0,0.14512511]
[1754757431552,1.71490647,116830.0,116820.0,0.03724689]
[1754757432342,1.71490647,116830.0,116820.0,0.04124689]
[1754757432742,1.71490647,116830.0,116820.0,0.03724689]
[1754757433648,1.35410647,116830.0,116820.0,0.13093689]
[1754757434763,1.35510647,116830.0,116820.0,0.12693689]
[1754757435552,1.71590647,116830.0,116820.0,0.12693689]
[1754757436555,1.35510647,116830.0,116820.0,0.12693689]
[1754757437357,1.35510647,116830.0,116820.0,0.20386208]
[1754757440556,1.35510647,116830.0,116820.0,0.17229208]
[1754757441053,0.9116571,116830.0,116820.0,0.17229208]
[1754757441249,1.35510647,116830.0,116820.0,0.17229208]
[1754757441450,1.71590647,116830.0,116820.0,0.09536689]
[1754757441652,1.71590647,116830.0,116820.0,0.23481511]
[1754757442249,1.35510647,116830.0,116820.0,0.23481511]
[1754757442646,1.71590647,116830.0,116820.0,0.23481511]
[1754757443357,1.35510647,116830.0,116820.0,0.23481511]
[1754757443558,1.71590647,116830.0,116820.0,0.23481511]
[1754757443761,1.35510647,116830.0,116820.0,0.23481511]
[1754757444663,1.24428373,116830.0,116820.0,0.23481511]
[1754757446861,1.60508373,116830.0,116820.0,0.23481511]
[1754757447258,1.24428373,116830.0,116820.0,0.23481511]
[1754757447561,1.60508373,116830.0,116820.0,0.23481511]
[1754757447955,1.93771036,116830.0,116820.0,0.23481511]
[1754757448154,1.93771036,116830.0,116820.0,0.18876511]
[1754757448758,1.57691036,116830.0,116820.0,0.18876511]
[1754757449757,1.93771036,116830.0,116820.0,0.18876511]
[1754757450565,1.93771036,116830.0,116820.0,0.11637511]
[1754757451256,1.93771036,116830.0,116820.0,0.13899511]
[1754757454969,3.12179036,116830.0,116820.0,0.13899511]
[1754757455263,3.45441699,116830.0,116820.0,0.10787822]
[1754757455464,3.45441699,116830.0,116820.0,0.18490262]
[1754757455668,3.45441699,116830.0,116820.0,0.0770244]
[1754757456669,2.90023484,116830.0,116820.0,0.0770244]
[1754757458268,2.96860771,116830.0,116820.0,0.0770244]
[1754757458468,0.0855844,116820.0,116810.0,0.1088509]
[1754757458768,0.89008214,116820.0,116810.0,0.1088509]
[1754757459658,0.89108214,116820.0,116810.0,0.1098509]
[1754757461670,0.4473844,116820.0,116810.0,0.1098509]
[1754757461973,0.89108214,116820.0,116810.0,0.1098509]
[1754757465767,0.89108214,116820.0,116810.0,0.1012244]
[1754757466368,0.89108214,116820.0,116810.0,0.0780244]
[1754757467171,0.89108214,116820.0,116810.0,0.1012244]
[1754757471073,0.89108214,116820.0,116810.0,0.0780244]
[1754757471372,0.89108214,116820.0,116810.0,0.1012244]
[1754757476681,1.44566746,116820.0,116810.0,0.1012244]
[1754757479688,1.44566746,116820.0,116810.0,0.0242]
[1754757480288,1.44566746,116820.0,116810.0,0.10118066]
[1754757480883,0.4473844,116820.0,116810.0,0.10118066]
[1754757481089,1.11290644,116820.0,116810.0,0.19829066]
[1754757481299,1.11290644,116820.0,116810.0,0.12131]
[1754757484399,1.11290644,116820.0,116810.0,0.07261]
[1754757485094,1.11290644,116820.0,116810.0,0.14959066]
[1754757485496,1.44566746,116820.0,116810.0,0.14959066]
[1754757491396,1.44566746,116820.0,116810.0,0.18048822]
[1754757495699,1.44566746,116820.0,116810.0,0.22774822]
[1754757496400,1.11290644,116820.0,116810.0,0.22774822]
[1754757498699,1.11290644,116820.0,116810.0,0.19522822]
[1754757498905,1.11290644,116820.0,116810.0,0.22774822]
[1754757499105,1.59486542,116820.0,116810.0,0.45263102]
[1754757499301,0.41934542,116820.0,116810.0,0.52971439]
[1754757499505,1.23406542,116820.0,116810.0,0.45263102]
[1754757500009,1.56682644,116820.0,116810.0,0.56054773]
[1754757500201,1.23406542,116820.0,116810.0,0.56054773]
[1754757500505,1.23406542,116820.0,116810.0,0.45263102]
[1754757500706,1.23406542,116820.0,116810.0,0.53822272]
[1754757501603,1.23406542,116820.0,116810.0,0.45263102]
[1754757501804,1.56682644,116820.0,116810.0,0.11987]
[1754757502004,1.56682644,116820.0,116810.0,0.45263102]
[1754757503498,0.75210644,116820.0,116810.0,0.45263102]
[1754757503702,1.56594644,116820.0,116810.0,0.45263102]
[1754757504211,0.75210644,116820.0,116810.0,0.45263102]
[1754757504711,1.56594644,116820.0,116810.0,0.45263102]
[1754757505313,0.75210644,116820.0,116810.0,0.45263102]
[1754757505615,1.56594644,116820.0,116810.0,0.45263102]
[1754757506209,1.56594644,116820.0,116810.0,0.64604235]
[1754757506911,1.56594644,116820.0,116810.0,0.53822272]
[1754757507113,1.56594644,116820.0,116810.0,0.64603768]
[1754757508513,1.56594644,116820.0,116810.0,0.56044598]
[1754757508812,1.56594644,116820.0,116810.0,0.22768496]
[1754757509413,1.56594644,116820.0,116810.0,0.31327666]